[Event "Warsaw Chess Open-B 2022"]
[Site "Warsaw"]
[Date "2022.07.24"]
[Round "8.6"]
[White "Seemann, Pola"]
[Black "Ryszkiewicz, Adam"]
[Result "1-0"]
[ECO "C25"]
[WhiteElo "1738"]
[BlackElo "1977"]
[Annotator "TA"]
[PlyCount "77"]
[EventDate "2022.07.18"]
[EventType "swiss"]
[EventCountry "POL"]
[SourceTitle "playchess.com"]
[Source "ChessBase"]
[SourceQuality "1"]
[TimeControl "40/5400+30:1800+30"]

{[%evp 9,77,16,105,104,102,100,101,103,110,91,89,62,87,55,67,45,60,47,46,32,24,12,28,8,10,0,0,0,0,0,0,0,22,0,27,0,0,0,0,0,182,171,145,160,145,122,319,314,332,301,352,338,272,246,351,383,849,889,1804,1413,2179,882,805,694,5002,4000,29987,29988,29988,29989]} 1. e4 {[%emt 0:00:02]} e5 {[%emt 0:00:05]} 2. Nc3 {[%emt 0:00:04]} Nc6 {[%emt 0:00:19]} 3. Bc4 {[%emt 0:00:08]} Bc5 {[%emt 0:00:15]} 4. Qg4 {[%emt 0:00:17]} g6 {[%emt 0:05:49]} 5. Qf3 {[%emt 0:00:05]} f6 {[%emt 0:00:54]} (5... Nf6 $11) 6. Nge2 $16 {[%emt 0:05:27] C25: Vienna Game: Alternatives to 2...Nf6.} d6 {[%emt 0:03:09]} 7. d3 {[%emt 0:03:25]} Nd4 {[%emt 0:05:01]} 8. Nxd4 {[%emt 0:00:13] White is better.} Bxd4 {[%emt 0:00:07] [#]} 9. Bd2 $146 {[%emt 0:08:52]} ({Predecessor:} 9. Be3 Bxe3 10. Qxe3 c6 11. O-O Qe7 12. f4 Be6 13. fxe5 dxe5 14. Bxe6 Qxe6 15. Rf3 {0-1 (58) Georgiev,N (1560)-Ignatov,B (1806) Sofia 2017}) 9... c6 {[%emt 0:01:09]} 10. a4 {[%emt 0:02:56][%cal Ba2a4,Ba4a5][%mdl 32]} Qe7 {[%emt 0:05:12]} 11. a5 {[%emt 0:06:40]} a6 {[%emt 0:01:27]} 12. Na4 {[%emt 0:02:42]} Be6 {[%emt 0:03:09]} 13. Bxe6 {[%emt 0:00:58]} Qxe6 {[%emt 0:00:03]} 14. Be3 {[%emt 0:01:43]} Bxe3 {[%emt 0:00:54]} 15. fxe3 {[%emt 0:02:04]} Ne7 {[%emt 0:00:16]} 16. O-O {[%emt 0:02:55]} O-O {[%emt 0:00:08]} 17. d4 {[%emt 0:02:18]} f5 {[%emt 0:07:26] Strongly threatening ...exd4.} 18. Nb6 {[%emt 0:15:21]} Rad8 {[%emt 0:09:37]} 19. d5 {[%emt 0:02:52]} cxd5 {[%emt 0:05:42]} 20. exd5 {[%emt 0:00:13]} Qf6 {[%emt 0:00:10]} 21. c3 {[%emt 0:08:22]} e4 {[%emt 0:08:41]} 22. Qg3 {[%emt 0:05:52]} g5 {[%emt 0:01:33]} 23. Ra4 {[%emt 0:04:25]} Qg6 {[%emt 0:04:01]} 24. Rc4 {[%emt 0:02:19]} Nc8 $2 {[%emt 0:12:19]} (24... Rf7 $11 {and Black is okay.}) 25. Rc7 $18 {[%emt 0:04:25]} Nxb6 {[%emt 0:04:14]} 26. axb6 {[%emt 0:00:03]} Rc8 {[%emt 0:03:53]} 27. Rd7 {[%emt 0:01:33] White is much more active.} Rfd8 $2 {[%emt 0:00:36] This move loses the game for Black.} (27... Rcd8 $16 28. Rxb7 Rb8 29. Rxb8 Rxb8) 28. Rxb7 {[%emt 0:00:40]} Rc5 {[%emt 0:00:16]} 29. Ra7 {[%emt 0:01:07] [#] And now b7 would win.} Rb8 {[%emt 0:00:29]} 30. Rxa6 {[%emt 0:01:23][%cal Ob6b7] aiming for b7!} Rxd5 {[%emt 0:00:32]} 31. Rfa1 {[%emt 0:00:34] Threatens to win with Ra8.} Qh5 {[%emt 0:11:22]} (31... Rb5 $142 32. Qf2 Kh8) 32. Qe1 {[%emt 0:00:53]} Rb5 $2 {[%emt 0:01:45]} (32... f4 33. exf4 gxf4 34. Qxe4 Rd1+ 35. Rxd1 Qxd1+ 36. Kf2 Qb3) 33. Qd2 {[%emt 0:01:07]} d5 {[%emt 0:03:51]} 34. Qd4 {[%emt 0:03:20] [#] Hoping for Ra8.} Rxb2 {[%emt 0:01:16]} 35. Qxd5+ {[%emt 0:04:49]} (35. Ra8 $142 Rxa8 36. Rxa8+ Kf7 37. Qxd5+ Kg7 38. Qg8+ Kh6 39. Qf8+ Kg6 40. Qd6+ Kg7 41. Ra7+ Qf7 42. Qc7) 35... Qf7 {[%emt 0:00:05]} 36. Qe5 {[%emt 0:00:31]} Rd8 {[%emt 0:01:10]} 37. Ra7 {[%emt 0:01:32]} Qf8 {[%emt 0:00:08]} 38. Qe6+ {[%emt 0:00:11]} Kh8 {[%emt 0:00:12]} 39. Rf7 {[%emt 0:00:11] Weighted Error Value: White=0.16 (very precise) /Black=0.52} 1-0

[Event "Warsaw Chess Open-B 2022"]
[Site "Warsaw"]
[Date "2022.07.24"]
[Round "8.7"]
[White "Pawicka, Magdalena"]
[Black "Vasynda, Oleksandr"]
[Result "1/2-1/2"]
[ECO "B39"]
[WhiteElo "1781"]
[BlackElo "1802"]
[Annotator "NA COMBH"]
[PlyCount "36"]
[EventDate "2022.07.18"]
[EventType "swiss"]
[EventCountry "POL"]
[SourceTitle "playchess.com"]
[Source "ChessBase"]
[SourceQuality "1"]
[TimeControl "40/5400+30:1800+30"]

1. e4 {[%emt 0:01:22]} c5 {[%emt 0:00:03]} 2. Nf3 {[%emt 0:00:24]} Nc6 {[%emt 0:00:06]} 3. d4 {[%emt 0:00:04]} cxd4 {[%emt 0:00:04]} 4. Nxd4 {[%emt 0:00:08]} g6 {[%emt 0:00:10]} 5. c4 {[%emt 0:02:43]} Bg7 {[%emt 0:00:05]} 6. Be3 {[%emt 0:00:10]} Nf6 {[%emt 0:00:02]} 7. Nc3 {[%emt 0:01:07]} Ng4 {[%emt 0:00:04]} 8. Qxg4 {[%emt 0:01:13]} Nxd4 {[%emt 0:00:07]} 9. Qd1 {[%emt 0:00:15]} Nc6 {[%emt 0:00:02]} 10. Be2 {[%emt 0:08:57]} d6 {[%emt 0:00:05]} 11. O-O {[%emt 0:01:42]} O-O {[%emt 0:00:44]} 12. Qd2 {[%emt 0:09:35]} Qa5 {[%emt 0:00:53]} 13. Rac1 {[%emt 0:07:43]} Rd8 {[%emt 0:06:21]} 14. Rfd1 {[%emt 0:03:34]} Be6 {[%emt 0:04:48]} 15. b3 {[%emt 0:03:58]} Rac8 {[%emt 0:00:16]} 16. Nb5 {[%emt 0:16:10]} Qxd2 {[%emt 0:01:18]} 17. Rxd2 {[%emt 0:02:38]} b6 {[%emt 0:03:27]} 18. h3 {[%emt 0:07:37]} Rd7 {[%emt 0:04:39]} 1/2-1/2

[Event "Warsaw Chess Open-B 2022"]
[Site "Warsaw"]
[Date "2022.07.24"]
[Round "8.8"]
[White "Smykalo, Severyn"]
[Black "Nesterenko, Kyrylo"]
[Result "1-0"]
[ECO "A66"]
[WhiteElo "1921"]
[BlackElo "1782"]
[Annotator "TA"]
[PlyCount "41"]
[EventDate "2022.07.18"]
[EventType "swiss"]
[EventCountry "POL"]
[SourceTitle "playchess.com"]
[Source "ChessBase"]
[SourceQuality "1"]
[TimeControl "40/5400+30:1800+30"]

{[%evp 17,41,72,75,68,52,63,130,108,146,142,191,183,205,245,394,392,467,477,455,469,455,396,501,472,1311,1308]} 1. d4 {[%emt 0:00:03]} Nf6 {[%emt 0:00:37]} 2. c4 {[%emt 0:00:06]} c5 {[%emt 0:00:35]} 3. d5 {[%emt 0:00:06]} e6 {[%emt 0:00:07]} 4. Nc3 {[%emt 0:00:05]} exd5 {[%emt 0:00:45]} 5. cxd5 {[%emt 0:00:08]} d6 {[%emt 0:00:05]} 6. e4 {[%emt 0:00:06][%cal Be2e4,Be4e5][%mdl 32]} g6 {[%emt 0:00:08]} 7. f4 {[%emt 0:00:10]} Bg7 {[%emt 0:00:54]} 8. e5 {[%emt 0:00:30]} Nh5 {[%emt 0:10:38]} 9. Bb5+ {[%emt 0:19:26]} Bd7 {[%emt 0:18:34]} 10. Nf3 {[%emt 0:02:11][%cal Bg1f3,Bf3g5,Bg5e4][%mdl 32] A67: Modern Benoni: Taimanov Variation.} O-O {[%emt 0:01:58]} 11. Bxd7 {[%emt 0:03:28]} Nxd7 {[%emt 0:20:28]} (11... Qxd7 $14 12. O-O Re8) 12. g4 $16 {[%emt 0:12:41][%cal Bg2g4,Bg4h5][%mdl 32] White is better.} dxe5 {[%emt 0:01:50]} 13. gxh5 {[%emt 0:02:07] And now 0-0 would win.} e4 {[%emt 0:01:12] [#]} (13... exf4 $16 14. hxg6 (14. Bxf4 Qf6 $14) 14... fxg6) 14. Ng5 $1 $18 {[%emt 0:06:49]} ({Weaker is} 14. Nxe4 Re8 15. Qe2 f5 $11) 14... h6 {[%emt 0:02:40]} 15. Ngxe4 {[%emt 0:04:07] [#] 0-0 is the strong threat.} Re8 $146 {[%emt 0:07:40]} (15... Bxc3+ $142 16. Nxc3 Qh4+ 17. Kd2 Qf2+ 18. Qe2 Qxf4+ 19. Kc2 Qf5+ 20. Qd3 Qxh5) ({Predecessor:} 15... Qh4+ 16. Ng3 Rae8+ 17. Kf2 Qh3 18. Be3 Nf6 19. Bxc5 Ng4+ 20. Kf3 f5 21. Qf1 Nxh2+ 22. Rxh2 Qxh2 23. Bxf8 Bxf8 {0-1 (55) Pradines,E (1693)-Miravent,P (2027) Buenos Aires 2018}) 16. O-O {[%emt 0:02:18]} Qh4 {[%emt 0:02:03]} 17. hxg6 {[%emt 0:06:06]} fxg6 {[%emt 0:00:15]} 18. Qf3 {[%emt 0:01:14]} Nf6 {[%emt 0:00:42]} 19. Nxf6+ {[%emt 0:01:40]} Bxf6 {[%emt 0:00:26]} 20. Bd2 {[%emt 0:00:30]} Re3 {[%emt 0:03:00]} (20... Rad8 $142 21. Kh1 Qh5 22. Qxh5 gxh5) 21. Bxe3 {[%emt 0:00:13] Black got outplayed after the opening.  Weighted Error Value: White=0.07 (flawless) /Black=0.53} 1-0

[Event "Warsaw Chess Open-B 2022"]
[Site "Warsaw"]
[Date "2022.07.25"]
[Round "9.1"]
[White "Kaczmarska, Joanna"]
[Black "Kaminski, Jan"]
[Result "1-0"]
[ECO "B98"]
[WhiteElo "1965"]
[BlackElo "1870"]
[Annotator "TA"]
[PlyCount "73"]
[EventDate "2022.07.18"]
[EventType "swiss"]
[EventCountry "POL"]
[SourceTitle "playchess.com"]
[Source "ChessBase"]
[SourceQuality "1"]
[TimeControl "40/5400+30:1800+30"]

{[%evp 23,72,0,16,-87,-102,-88,233,240,232,246,278,144,472,493,466,446,537,534,520,494,477,387,560,553,581,350,402,393,382,383,343,258,572,577,829,803,1762,1758,1445,1333,1335,1011,29992,29992,29995,29996,29996,29993,29998,29999,29999]} 1. e4 {[%emt 0:01:03] Pelletier,Y} c5 {[%emt 0:00:13]} 2. Nf3 {[%emt 0:00:04]} d6 {[%emt 0:00:10]} 3. d4 {[%emt 0:00:05]} cxd4 {[%emt 0:00:03]} 4. Nxd4 {[%emt 0:00:04]} Nf6 {[%emt 0:00:05]} 5. Nc3 {[%emt 0:00:03]} a6 {[%emt 0:00:04]} 6. Bg5 {[%emt 0:00:07]} e6 {[%emt 0:00:05]} 7. f4 {[%emt 0:00:09]} Be7 {[%emt 0:00:08]} 8. Qf3 {[%emt 0:00:28]} Qc7 {[%emt 0:00:04]} 9. g4 {[%emt 0:02:23]} Nbd7 {[%emt 0:02:17]} 10. O-O-O {[%emt 0:04:10]} b5 {[%emt 0:01:30]} 11. Bxf6 {[%emt 0:10:59]} Nxf6 {[%emt 0:00:08]} 12. g5 {[%emt 0:04:30]} Nd7 {[%emt 0:00:05]} 13. Nf5 {[%emt 0:06:40] B99: Sicilian Najdorf: 6 Bg5 e6 7 f4 Be7 8 Qf3 Qc7 9 0-0-0 Nbd7.} exf5 $17 {[%emt 0:04:33]} 14. Nd5 {[%emt 0:02:35] [#]} Qc6 $146 {[%emt 0:10:59][%mdl 8192]} (14... Qd8 $17 {Hoping for ...Nb6.} 15. exf5 Bb7) ({Predecessor:} 14... Qb7 15. Qc3 Nb6 16. Nxe7 Kxe7 17. Qxg7 Be6 18. exf5 Bd5 19. Bh3 Rae8 20. Rd3 Kd8 {½-½ (47) Sulskis,S (2545)-Pelletier,Y (2610) Warsaw 2005 CBM 108 [Pelletier,Y]}) 15. exf5 $18 {[%emt 0:27:15][%cal Od5f6] White is clearly better.} Kd8 {[%emt 0:04:58] Threatens to win with ...Nb6.} 16. Bg2 {[%emt 0:05:40][%mdl 1024] White has strong compensation.} Bb7 {[%emt 0:01:36]} 17. Qa3 {[%emt 0:08:11]} ({Better is} 17. Rhe1 $18 Rc8 18. Rd2 (18. Qe4 Re8 $11)) 17... Qc4 $2 {[%emt 0:28:48][%mdl 8192] A mistake that costs the game.} (17... Rc8 $2 18. Rd2 b4 19. Qa5+ (19. Qxb4 Qb5 $14) 19... Nb6 20. Nxb6 $18) (17... Qc5 $16 {is more resistant.}) 18. Qa5+ {[%emt 0:15:07]} Ke8 {[%emt 0:00:02]} 19. b3 {[%emt 0:01:52]} Qc5 {[%emt 0:04:32] Strongly threatening ...Rc8.} 20. Nc7+ {[%emt 0:00:35]} Kf8 {[%emt 0:00:03]} 21. Bxb7 {[%emt 0:00:25]} Rb8 {[%emt 0:06:32]} 22. Rhe1 {[%emt 0:04:06] Active counter play!} Rxb7 {[%emt 0:06:53]} (22... b4 {was necessary.} 23. Qxc5 Nxc5) 23. Nd5 {[%emt 0:00:05]} b4 {[%emt 0:17:38]} 24. Qa4 {[%emt 0:04:32]} Ne5 {[%emt 0:07:49]} (24... Bd8 $2 25. Qxa6 Rb8 26. Qe2 Bxg5 27. fxg5) 25. f6 {[%emt 0:01:09]} (25. fxe5 Bxg5+ 26. Kb1 Qb5 27. Qxb5 axb5 28. exd6 g6 $18) 25... gxf6 {[%emt 0:00:06]} 26. gxf6 {[%emt 0:00:18] Chess con chili.} ({And not} 26. fxe5 fxe5 27. Rg1 (27. Nxe7 Rc7 $11) 27... Rg8 28. Qxa6 Ra7 $11) 26... Bxf6 {[%emt 0:00:25][%cal Of6h4]} 27. Nxf6 $40 {[%emt 0:00:13][%mdl 128] White has strong attack.} Rc7 $2 {[%emt 0:02:38]} (27... Nf3) 28. Re2 {[%emt 0:00:32]} Qc3 {[%emt 0:01:17] [#] ...Qa1+ is the strong threat.} 29. Kb1 {[%emt 0:00:38] Against Qa1+} ({Weaker is} 29. Qe8+ Kg7 30. Nh5+ (30. fxe5 Qa1+ 31. Kd2 Qd4+ 32. Ke1 Qg1+ 33. Kd2 Qd4+ 34. Ke1 Qg1+ 35. Kd2 Qd4+ $11) 30... Kh6 31. Rxd6+ Ng6 $16) 29... Nc4 {[%emt 0:00:39]} 30. bxc4 {[%emt 0:00:30][%cal Od1g1] Threatening mate with Rg1!} Qxf6 {[%emt 0:00:17]} 31. Qe8+ {[%emt 0:00:16]} Kg7 {[%emt 0:00:03]} 32. Rg2+ {[%emt 0:00:32]} Kh6 {[%emt 0:00:02]} 33. Qe3 {[%emt 0:00:15] White mates.} Qf5 {[%emt 0:00:58]} 34. Rxd6+ {[%emt 0:01:18]} f6 {[%emt 0:00:09] [#]} 35. Rxf6+ $3 {[%emt 0:00:37][%mdl 512]} Qxf6 {[%emt 0:00:09]} (35... Qg6 36. Qe5) 36. Qh3+ {[%emt 0:00:05]} Qh4 {[%emt 0:00:07]} 37. Qxh4# {[%emt 0:00:05] Weighted Error Value: White=0.41/Black=1.03} 1-0

[Event "Warsaw Chess Open-B 2022"]
[Site "Warsaw"]
[Date "2022.07.25"]
[Round "9.2"]
[White "Kowalczyk, Adam"]
[Black "Rzeszowski, Dominik"]
[Result "1/2-1/2"]
[ECO "D15"]
[WhiteElo "1944"]
[BlackElo "1856"]
[Annotator "TA"]
[PlyCount "38"]
[EventDate "2022.07.18"]
[EventType "swiss"]
[EventCountry "POL"]
[SourceTitle "playchess.com"]
[Source "ChessBase"]
[SourceQuality "1"]
[TimeControl "40/5400+30:1800+30"]

{[%evp 10,38,18,8,12,12,8,14,22,25,32,23,31,0,0,-10,-13,-8,-8,-12,-8,-10,-12,-15,0,-76,18,10,11,11,12]} 1. d4 {[%emt 0:00:02]} d5 {[%emt 0:00:05]} 2. Nf3 {[%emt 0:00:27]} c6 {[%emt 0:00:11]} 3. c4 {[%emt 0:00:53]} Nf6 {[%emt 0:00:06]} 4. Nc3 {[%emt 0:00:12]} a6 {[%emt 0:00:04]} 5. cxd5 {[%emt 0:13:40]} cxd5 {[%emt 0:02:44]} 6. Qb3 {[%emt 0:03:08]} Nc6 {[%emt 0:09:23] D15: Slav Defence: 4 Nc3 a6 and gambit lines after 4 Nc3 dxc4.} 7. Bg5 {[%emt 0:00:47]} e6 {[%emt 0:09:41]} 8. e3 {[%emt 0:05:23]} b5 {[%emt 0:04:19]} 9. Bd3 {[%emt 0:19:04]} Bd6 {[%emt 0:06:30]} 10. O-O {[%emt 0:06:29]} h6 {[%emt 0:12:53]} 11. Bxf6 {[%emt 0:07:55]} Qxf6 {[%emt 0:00:02] [#]} 12. e4 $146 {[%emt 0:00:15]} ({Predecessor:} 12. a4 b4 13. Ne2 Bb7 14. Qd1 O-O 15. b3 {1-0 (15) Vasseur,O (2132)-Jacquier,L (1881) ICCF email 2017}) 12... Nxd4 {[%emt 0:19:16]} 13. Nxd4 {[%emt 0:00:06]} Qxd4 {[%emt 0:00:14]} 14. Rad1 {[%emt 0:00:05][%cal Od3b5] [#] And now Bxb5+! would win.} Qb4 {[%emt 0:01:24] White should prevent ...Qxb3.} 15. Qc2 {[%emt 0:00:05][%cal Oc3d5] Nxd5! is the strong threat.} O-O {[%emt 0:03:20]} 16. exd5 {[%emt 0:01:10]} Bb7 {[%emt 0:07:05]} 17. Be4 {[%emt 0:02:57]} (17. a3 $11 {keeps the balance.} Qc5 18. dxe6) 17... Bxd5 {[%emt 0:04:04]} ({Black should play} 17... f5 $17 18. Bd3 exd5 19. Bxf5 {[#]} Bxh2+ $1 20. Kxh2 Qf4+ 21. Kg1 Rxf5) 18. Nxd5 {[%emt 0:17:49]} exd5 {[%emt 0:00:06]} 19. Bxd5 {[%emt 0:00:03]} Rac8 {A balanced but interesting game.  Weighted Error Value: White=0.15 (very precise) /Black=0.17 (very precise)} 1/2-1/2

[Event "Warsaw Chess Open-B 2022"]
[Site "Warsaw"]
[Date "2022.07.25"]
[Round "9.3"]
[White "Trybowska, Barbara"]
[Black "Sidorczuk, Pawel"]
[Result "1-0"]
[ECO "A45"]
[WhiteElo "1828"]
[BlackElo "1962"]
[Annotator "TA"]
[PlyCount "81"]
[EventDate "2022.07.18"]
[EventType "swiss"]
[EventCountry "POL"]
[SourceTitle "playchess.com"]
[Source "ChessBase"]
[SourceQuality "1"]
[TimeControl "40/5400+30:1800+30"]

{[%evp 12,81,58,55,109,111,105,94,131,125,139,104,112,100,100,108,93,49,56,50,62,62,95,0,0,0,0,-12,56,29,65,79,107,83,376,393,426,425,542,399,416,400,547,400,504,502,489,458,488,495,512,510,516,506,618,652,1323,1297,1231,819,5489,5485,5406,5414,5413,5406,5405,5393,5022,4807,1520,1488]} 1. d4 {[%emt 0:00:02]} Nf6 {[%emt 0:03:01]} 2. Bf4 {[%emt 0:00:09]} d6 {[%emt 0:00:34]} 3. Nc3 {[%emt 0:00:11]} g6 {[%emt 0:00:51]} 4. e4 {[%emt 0:00:12]} Bg7 {[%emt 0:00:03]} 5. Qd2 {[%emt 0:00:11]} c6 {[%emt 0:00:03]} 6. Bh6 {[%emt 0:01:21]} O-O {[%emt 0:00:05]} 7. h4 {[%emt 0:02:28]} e5 {[%emt 0:09:35] B07: Pirc Defence: Miscellaneous Systems.} (7... c5 $14 8. Bxg7 Kxg7) 8. Bxg7 $1 $16 {[%emt 0:03:54]} Kxg7 {[%emt 0:00:05]} 9. h5 $1 {[%emt 0:00:17] [#]} Be6 $146 {[%emt 0:07:14] White is better.} ({Predecessor:} 9... Nxh5 10. Be2 exd4 11. Qxd4+ Qf6 12. Qd2 Qf4 13. Bxh5 Qxd2+ 14. Kxd2 gxh5 15. Rxh5 f6 {½-½ (56) Jablonicky,M (2250)-Kostolansky,S (2420) Slovakia 2019}) 10. hxg6 {[%emt 0:03:30]} ({Resist} 10. d5 $6 cxd5 11. hxg6 (11. exd5 Bf5 $14) 11... fxg6 $14) 10... fxg6 {[%emt 0:00:02]} 11. Qh6+ {[%emt 0:04:43]} ({Don't play} 11. d5 $6 cxd5 12. exd5 Bf5 $14) 11... Kg8 {[%emt 0:00:01]} 12. Nf3 {[%emt 0:02:17]} Nbd7 {[%emt 0:00:39]} 13. O-O-O {[%emt 0:16:41] White is more active.} Qe7 {[%emt 0:01:48]} 14. Qg5 {[%emt 0:07:33]} Rae8 {[%emt 0:09:00]} 15. Qg3 {[%emt 0:12:15]} a6 {[%emt 0:08:23]} 16. Be2 {[%emt 0:05:54][%cal Rd4e5]} b5 {[%emt 0:09:07] Strongly threatening ...b4.} 17. d5 {[%emt 0:06:15]} (17. Ng5 $1 $16) 17... cxd5 $11 {[%emt 0:01:03]} 18. exd5 {[%emt 0:00:22]} Bg4 {[%emt 0:15:12]} 19. Rh4 {[%emt 0:02:23]} (19. Ng5 $5 {[%cal Re2g4]} Bxe2 20. Nxe2 $11) 19... h5 {[%emt 0:05:52]} (19... b4 $11 20. Ng5 bxc3 21. Bxg4 Nxg4 22. Rxg4 cxb2+ 23. Kb1 Rf5) 20. Ng5 {[%emt 0:05:33][%cal Og5e6] aiming for Ne6!} Bxe2 {[%emt 0:08:51]} (20... Nxd5 $2 21. Bxg4 Qxg5+ 22. Rd2 $18) 21. Nxe2 {[%emt 0:00:08]} Ng4 {[%emt 0:00:02]} 22. Ne6 $36 {[%emt 0:01:32][%mdl 2048] White is in control.} Rf6 {[%emt 0:00:01][%mdl 8192] [#] This costs Black the game.} (22... Rxf2 $2 23. Rxg4 hxg4 24. Qxf2 $18) (22... Qh7 $16 {was called for.}) 23. f3 $1 $18 {[%emt 0:02:15]} Ne3 {[%emt 0:00:54] [#]} 24. Rdh1 $1 {[%emt 0:01:32] Hoping for Rxh5.} Rxe6 {[%emt 0:12:43]} 25. dxe6 {[%emt 0:00:31]} Qxe6 {[%emt 0:00:01]} 26. Rxh5 {[%emt 0:00:17] White wants to mate with Rh8+.} Nf8 {[%emt 0:00:04]} 27. Qg5 {[%emt 0:04:27] Threatens to win with Rh8+.} Nf5 {[%emt 0:01:11]} 28. g4 {[%emt 0:01:02] White is clearly winning.} Ng7 {[%emt 0:00:01]} 29. Rh8+ {[%emt 0:00:53]} Kf7 {[%emt 0:00:01]} 30. Nc3 {[%emt 0:00:30][%cal Be2c3,Bc3e4,Be4c5][%mdl 32]} b4 {[%emt 0:01:23]} 31. Ne4 {[%emt 0:00:16] Rd1 is the strong threat.} d5 {[%emt 0:00:01]} 32. Nc5 {[%emt 0:01:50]} Qd6 {[%emt 0:01:14]} 33. Nd3 {[%emt 0:00:23]} Nd7 {[%emt 0:01:45]} 34. Rxe8 {[%emt 0:00:16]} Nxe8 {[%emt 0:00:07]} 35. f4 {[%emt 0:00:28][%cal Bf3f4,Bf4e5,Be5e6][%mdl 32]} e4 {[%emt 0:00:23]} 36. Ne5+ Nxe5 {[%emt 0:00:21]} 37. fxe5 {[%emt 0:00:20]} Qe6 {[%emt 0:00:06]} 38. Rf1+ {[%emt 0:02:06]} Kg8 {[%emt 0:00:44]} 39. Qf4 {[%emt 0:00:29] White threatens Qf8+ and mate.} Qe7 {[%emt 0:00:19] Prevents Qf8+.} 40. e6 {[%emt 0:00:42]} Nc7 {[%emt 0:00:21]} 41. Qe5 {[%emt 0:30:57] Weighted Error Value: White=0.19 (very precise) /Black=0.53} 1-0

[Event "Warsaw Chess Open-B 2022"]
[Site "Warsaw"]
[Date "2022.07.25"]
[Round "9.4"]
[White "Posuniak, Weronika"]
[Black "Seemann, Pola"]
[Result "0-1"]
[ECO "E43"]
[WhiteElo "1895"]
[BlackElo "1738"]
[Annotator "NA RC COMBH"]
[PlyCount "62"]
[EventDate "2022.07.18"]
[EventType "swiss"]
[EventCountry "POL"]
[SourceTitle "playchess.com"]
[Source "ChessBase"]
[SourceQuality "1"]
[TimeControl "40/5400+30:1800+30"]

1. d4 {[%emt 0:00:03]} Nf6 {[%emt 0:00:05]} 2. c4 {[%emt 0:00:04]} e6 {[%emt 0:00:04]} 3. Nc3 {[%emt 0:00:05]} Bb4 {[%emt 0:00:04]} 4. e3 {[%emt 0:00:10]} b6 {[%emt 0:00:09]} 5. Be2 {[%emt 0:07:32]} Bb7 {[%emt 0:00:43]} 6. Bf3 {[%emt 0:00:44]} Bxf3 {[%emt 0:07:01]} 7. Qxf3 {[%emt 0:01:31]} d5 {[%emt 0:01:15]} 8. Nge2 {[%emt 0:02:06]} Bxc3+ {[%emt 0:05:25]} 9. Nxc3 {[%emt 0:02:21]} O-O {[%emt 0:03:33]} 10. O-O {[%emt 0:00:38]} Na6 {[%emt 0:01:27]} 11. Qe2 {[%emt 0:03:27]} Qc8 {[%emt 0:03:27]} 12. e4 {[%emt 0:16:17]} Nxe4 {[%emt 0:05:10]} 13. Nxe4 {[%emt 0:01:51]} dxe4 {[%emt 0:00:07]} 14. Qxe4 {[%emt 0:00:06]} c5 {[%emt 0:01:24]} 15. b3 {[%emt 0:03:57]} cxd4 {[%emt 0:04:20]} 16. Qxd4 {[%emt 0:02:20]} Rd8 {[%emt 0:03:10]} 17. Qg4 {[%emt 0:00:56]} e5 {[%emt 0:02:56]} 18. Qg3 {[%emt 0:00:54]} f6 {[%emt 0:06:23]} 19. Bb2 {[%emt 0:05:45]} Nc5 {[%emt 0:05:19]} 20. Rad1 {[%emt 0:02:59]} Qf5 {[%emt 0:01:42]} 21. Qc3 {[%emt 0:07:36]} Nd3 {[%emt 0:02:56]} 22. Rd2 {[%emt 0:04:23]} Rd7 {[%emt 0:02:55]} 23. h3 {[%emt 0:04:30]} Nf4 {[%emt 0:06:37]} 24. Kh2 {[%emt 0:03:05]} Rad8 {[%emt 0:02:53]} 25. Rxd7 {[%emt 0:01:16]} Rxd7 {[%emt 0:00:02]} 26. c5 {[%emt 0:02:00]} Rd3 {[%emt 0:02:01]} 27. Qc4+ {[%emt 0:00:49]} Kh8 {[%emt 0:00:17]} 28. cxb6 {[%emt 0:03:56]} Rxh3+ 29. Kg1 Qg4 {[%emt 0:01:25]} 30. Qe4 {[%emt 0:01:45]} Qxg2+ {[%emt 0:00:58]} 31. Qxg2 {[%emt 0:00:14]} Ne2# {[%emt 0:00:03]} 0-1